{"text_format":"3","workbook":"xlsx","n_sheets":1,"sheets":["Fatura"],"not_rendered":{"defined_names":6},"read":"whole","date_system":"1900"}

{"sheet":"Fatura","index":0,"n_rows":26,"n_cols":7,"rows_kept":26,"merged":[[0,1,0,2],[1,1,1,2],[1,3,1,4],[1,5,1,6],[2,1,2,2],[2,3,2,4],[2,5,2,6],[3,1,3,2],[3,3,3,4],[4,1,4,2],[4,3,4,4],[5,3,5,4],[24,1,24,4],[25,1,25,4]]}
[null,"Nome da Empresa"]
[null,"Endereço",null,"Tel.: Número do telefone",null,"Email"]
[null,"Cidade, estado, CEP",null,"Fax: Número do fax",null,"Site"]
[null,"Cobrança para:",null,{"$f":"\"Telefone:  \"","v":"Telefone:  "},null,"Nº da fatura:"]
[null,"Endereço:",null,{"$f":"\"Fax:    \"","v":"Fax:    "},null,"Data da fatura:"]
[{"$nulls":3},{"$f":"\"Email:   \"","v":"Email:   "}]
[null,{"$f":"\"Fatura de: \"","v":"Fatura de: "}]
[null,"Nº do item","Descrição","Qtd.","Preço unitário","Desconto","Preço"]
[{"$nulls":6},{"$f":"IFERROR((D9*E9)-F9,\"\")","v":0}]
[{"$nulls":6},0]
[{"$nulls":6},0]
[{"$nulls":6},0]
[{"$nulls":6},0]
[{"$nulls":6},0]
[{"$nulls":6},0]
[{"$nulls":6},0]
[{"$nulls":6},0]
[{"$nulls":6},0]
[{"$nulls":6},0]
[{"$nulls":6},0]
[{"$nulls":5},"Subtotal da fatura",{"$f":"SUM(SimpleInvoice[Preço])","v":0}]
[{"$nulls":5},"Alíquota de imposto"]
[{"$nulls":5},"Imposto",{"$f":"IFERROR(G21*G22,\"\")","v":0}]
[{"$nulls":5},"Outros"]
[null,{"$f":"\"Emitir todos os cheques nominais à ordem de \"&company_name&\".\"","v":"Emitir todos os cheques nominais à ordem de Nome da Empresa."},{"$nulls":3},"Depósito recebido"]
[null,"Total devido em <#> dias. Contas em atraso devido a um encargo de serviço de <#>% por mês.",{"$nulls":3},"TOTAL",{"$f":"IFERROR((G21+G23+G24)-G25,\"\")","v":0}]